bitfinex/quotes_SOLUSD_20260217
["timestamp","ask_amount","ask_price","bid_price","bid_amount"]
[1771350556775,0.5,83.539,83.521,11.97303672]
[1771350556985,0.5,83.539,83.52,0.2]
[1771350557212,7.37665166,83.55,83.521,41.90562852]
[1771350557495,4.61729252,83.576,83.522,0.4849083]
[1771350557496,14.76,83.552,83.522,0.4849083]
[1771350557674,14.76,83.553,83.522,0.4849083]
[1771350558282,7.37665166,83.56,83.522,0.4849083]
[1771350558482,7.37665166,83.55,83.522,0.4849083]
[1771350558701,7.37665166,83.54,83.52,0.2]
[1771350559078,7.37665166,83.54,83.52,12.17306592]
[1771350559277,14.76,83.539,83.52,12.17306592]
[1771350559794,0.4622912,83.538,83.52,0.2]
[1771350560389,14.76,83.539,83.51,11.97452728]
[1771350560390,0.4622912,83.529,83.51,11.97452728]
[1771350560592,0.4622912,83.529,83.491,11.97733887]
[1771350560894,0.4622912,83.529,83.5,7.37665166]
[1771350561398,14.76,83.537,83.51,7.37665166]
[1771350561590,14.76,83.538,83.51,7.86155996]
[1771350562373,22.13665166,83.54,83.51,7.86155996]
[1771350563593,22.13665166,83.54,83.511,11.97447042]
[1771350563781,22.59894286,83.54,83.511,11.97447042]
[1771350564093,22.59894286,83.54,83.511,41.91064649]
[1771350564511,7.37665166,83.54,83.512,0.4849083]
[1771350564798,14.76,83.544,83.521,0.4849083]
[1771350564990,7.37665166,83.56,83.52,7.37665166]
[1771350565295,26.72759176,83.559,83.52,7.37665166]
[1771350565496,7.83894286,83.54,83.511,41.91064649]
[1771350566089,0.4622912,83.539,83.511,41.91064649]
[1771350566595,7.37665166,83.55,83.512,0.4849083]
[1771350567682,7.37665166,83.55,83.513,11.97418366]
[1771350567881,14.76,83.549,83.513,41.90964281]
[1771350568082,14.76,83.549,83.513,42.39455111]
[1771350568282,14.76,83.549,83.514,0.4849083]
[1771350569201,7.37665166,83.56,83.521,0.4849083]
[1771350569387,7.37665166,83.55,83.521,0.4849083]
[1771350569782,7.37665166,83.56,83.523,0.4849083]
[1771350569994,14.76,83.558,83.523,0.4849083]
[1771350570988,7.37665166,83.55,83.523,0.4849083]
[1771350571700,7.37665166,83.55,83.525,0.4849083]
[1771350574313,7.37665166,83.55,83.526,12.45722829]
[1771350574804,7.37665166,83.55,83.527,0.4849083]
[1771350575704,0.4622912,83.572,83.527,0.4849083]
[1771350575886,7.37665166,83.57,83.531,0.4849083]
[1771350576090,14.74,83.569,83.531,0.4849083]
[1771350576296,7.37665166,83.56,83.532,11.97146003]
[1771350576498,7.37665166,83.56,83.533,0.4849083]
[1771350577287,14.74,83.559,83.533,0.4849083]
[1771350577703,7.37665166,83.56,83.533,0.4849083]
[1771350578504,7.37665166,83.56,83.533,12.4561591]
[1771350578713,19.34410095,83.56,83.533,12.4561591]
[1771350578889,0.4622912,83.549,83.521,0.4849083]
[1771350579288,0.4622912,83.549,83.522,0.4849083]
[1771350580200,0.4622912,83.549,83.523,11.97275002]
[1771350580409,0.4622912,83.549,83.524,0.4849083]
[1771350581084,0.4622912,83.547,83.523,11.97275002]
[1771350581812,0.4622912,83.547,83.523,42.38953337]
[1771350582017,22.11665166,83.55,83.524,0.4849083]
[1771350582692,11.96902416,83.549,83.525,12.45737163]
[1771350583000,22.11665166,83.55,83.525,0.4849083]
[1771350584292,14.76,83.552,83.525,0.4849083]
[1771350584492,14.76,83.551,83.525,0.4849083]
[1771350584695,11.96485145,83.579,83.541,0.46443614]
[1771350584915,14.76,83.579,83.541,0.46443614]
[1771350585092,11.96361212,83.587,83.551,0.46443614]
[1771350585405,11.96361212,83.587,83.526,101.76471996]
[1771350585406,7.37665166,83.59,83.561,0.46443614]
[1771350585613,14.76,83.589,83.561,0.46443614]
[1771350585801,14.76,83.596,83.571,0.46443614]
[1771350586994,14.76,83.598,83.573,0.46443614]
[1771350587597,7.37665166,83.6,83.573,0.46443614]
[1771350587793,14.76,83.602,83.573,0.46443614]
[1771350587999,19.8171254,83.61,83.573,0.46443614]
[1771350588301,7.37665166,83.6,83.573,0.46443614]
[1771350588503,0.48013808,83.599,83.572,11.96573014]
[1771350588708,7.37665166,83.59,83.567,11.96633366]
[1771350589010,7.37665166,83.58,83.556,0.46443614]
[1771350589811,0.48013808,83.587,83.556,0.46443614]
[1771350590012,0.48013808,83.569,83.537,11.9707435]
[1771350590396,0.48013808,83.569,83.538,0.46443614]
[1771350590597,22.13665166,83.57,83.541,0.46443614]
[1771350591923,22.13665166,83.57,83.542,11.97002705]
[1771350592227,11.9661597,83.569,83.542,11.97002705]
[1771350592409,0.48013808,83.568,83.541,0.46443614]
[1771350592604,0.48013808,83.568,83.542,11.97002705]
[1771350592912,14.76,83.567,83.542,11.97002705]
[1771350593114,14.76,83.567,83.527,29.93032713]
[1771350593115,7.37665166,83.56,83.531,0.46872516]
[1771350593298,0.45874229,83.558,83.522,0.46872516]
[1771350593493,7.37665166,83.55,83.522,0.46872516]
[1771350594006,7.37665166,83.55,83.523,11.97275002]
[1771350594314,7.37665166,83.55,83.524,0.46872516]
[1771350594513,7.37665166,83.55,83.523,11.97275002]
[1771350594514,0.45874229,83.548,83.523,11.97275002]
[1771350594702,0.45874229,83.539,83.512,11.97431203]
[1771350595105,7.37665166,83.54,83.513,0.46872516]
[1771350596110,14.76,83.544,83.515,0.46872516]
[1771350596613,14.76,83.543,83.515,0.46872516]
[1771350597217,14.76,83.543,83.521,0.46872516]
[1771350598216,14.76,83.543,83.522,12.44161852]
[1771350600019,0.45874229,83.548,83.522,12.44161852]
[1771350600220,15.21874229,83.548,83.522,12.44161852]
[1771350600522,7.37665166,83.56,83.53,7.37665166]
[1771350600830,14.76,83.569,83.541,0.46872516]
[1771350601006,7.37665166,83.57,83.541,0.46872516]
[1771350601602,0.45874229,83.569,83.541,0.46872516]
[1771350602127,0.45874229,83.559,83.531,0.46872516]
[1771350602433,0.45874229,83.559,83.532,12.44018519]
[1771350602645,0.45874229,83.559,83.533,0.46872516]
[1771350603132,0.45874229,83.578,83.541,0.46872516]
[1771350603430,14.78,83.572,83.541,0.46872516]
[1771350604224,19.33983634,83.59,83.551,0.46872516]
[1771350604408,14.76,83.589,83.553,0.46872516]
[1771350604607,19.33983634,83.59,83.553,0.46872516]
[1771350604608,7.37665166,83.59,83.553,0.46872516]
[1771350604810,7.37665166,83.61,83.571,0.46872516]
[1771350605107,47.81028479,83.665,83.571,0.46872516]
[1771350605108,0.45874229,83.599,83.571,0.46872516]
[1771350605329,7.37665166,83.6,83.571,0.46872516]
[1771350605708,0.45874229,83.599,83.561,0.46872516]
[1771350606320,7.37665166,83.58,83.551,0.46872516]
[1771350606909,7.37665166,83.59,83.561,0.46872516]
[1771350607424,7.83539395,83.59,83.561,0.46872516]
[1771350607622,0.45874229,83.589,83.561,0.46872516]
[1771350607824,0.45874229,83.589,83.554,11.96829917]
[1771350608017,0.45874229,83.589,83.555,0.46872516]
[1771350608226,7.37665166,83.59,83.561,0.46872516]
[1771350608528,0.45874229,83.589,83.563,0.46872516]
[1771350608826,7.37665166,83.57,83.542,0.46872516]
[1771350609011,0.45874229,83.569,83.542,11.97002705]
[1771350609906,7.37665166,83.57,83.543,0.46872516]
[1771350610325,0.45874229,83.569,83.543,0.46872516]
[1771350611030,7.37665166,83.56,83.538,11.97054556]
[1771350611224,0.45874229,83.567,83.54,7.37665166]
[1771350611423,0.45874229,83.567,83.538,42.36577123]
[1771350611833,14.76,83.574,83.541,0.46872516]
[1771350612632,7.37665166,83.57,83.541,0.46872516]
[1771350612841,7.37665166,83.57,83.543,0.46872516]
[1771350613743,0.45874229,83.568,83.542,11.97002705]
[1771350614237,0.45874229,83.568,83.543,0.46872516]
[1771350614922,14.76,83.574,83.545,0.4562926]
[1771350615444,29.9084129,83.589,83.544,11.96974049]
[1771350615445,0.46814902,83.585,83.551,0.4562926]
[1771350616327,7.3792278,83.59,83.56,7.3792278]
[1771350616527,7.3792278,83.59,83.561,0.4562926]
[1771350617040,19.34248065,83.59,83.563,0.4562926]
[1771350617419,7.3792278,83.59,83.563,0.4562926]
[1771350617916,0.46814902,83.612,83.571,0.4562926]
[1771350618117,0.46814902,83.63,83.601,0.4562926]
[1771350618321,0.46814902,83.658,83.611,0.4562926]
[1771350618525,0.46814902,83.651,83.611,0.4562926]
[1771350618739,0.46814902,83.67,83.64,7.3792278]
[1771350618947,7.3792278,83.68,83.64,7.3792278]
[1771350619159,0.2,83.7,83.647,0.4562926]
[1771350619441,0.2,83.7,83.646,11.95500898]
[1771350619442,0.2,83.7,83.671,0.4562926]
[1771350619737,7.3792278,83.68,83.641,11.95575583]
[1771350619914,7.3792278,83.66,83.627,0.4562926]
[1771350620119,7.3792278,83.67,83.631,0.4562926]
[1771350620535,7.3792278,83.68,83.651,0.4562926]
[1771350620747,7.3792278,83.69,83.651,0.4562926]
[1771350621121,7.3792278,83.69,83.663,0.4562926]
[1771350621319,0.46814902,83.679,83.641,0.4562926]
[1771350621654,7.3792278,83.66,83.631,0.4562926]
[1771350622315,7.3792278,83.64,83.611,0.4562926]
[1771350622744,7.3792278,83.63,83.599,0.4562926]
[1771350623326,7.3792278,83.63,83.601,0.4562926]
[1771350623726,7.3792278,83.64,83.601,0.4562926]
[1771350624143,11.95500137,83.647,83.601,0.4562926]
[1771350624144,7.3792278,83.63,83.601,0.4562926]
[1771350624343,0.46814902,83.662,83.601,0.4562926]
[1771350624548,0.2,83.7,83.601,0.4562926]
[1771350624549,7.3792278,83.67,83.631,0.4562926]
[1771350624719,7.5792278,83.7,83.661,0.4562926]
[1771350624925,0.46814902,83.699,83.636,18.0]
[1771350625125,0.46814902,83.679,83.64,7.3792278]
[1771350625425,0.46814902,83.677,83.641,11.95585896]
[1771350625621,7.3792278,83.67,83.63,7.3792278]
[1771350625827,0.46814902,83.669,83.64,7.3792278]
[1771350626424,0.46814902,83.68,83.65,7.3792278]
[1771350626924,0.46814902,83.679,83.65,7.3792278]
[1771350627128,0.46814902,83.679,83.64,7.3792278]
[1771350627335,0.46814902,83.677,83.641,11.95585896]
[1771350627930,0.46814902,83.677,83.65,7.3792278]
[1771350628227,0.46814902,83.677,83.64,7.3792278]
[1771350628943,0.46814902,83.676,83.631,41.85050997]
[1771350629128,0.46814902,83.676,83.64,7.3792278]
[1771350629329,0.46814902,83.667,83.64,7.3792278]
[1771350631235,0.46814902,83.659,83.62,7.3792278]
[1771350631535,0.46814902,83.649,83.62,7.3792278]
[1771350632263,0.46814902,83.649,83.62,19.33805755]
[1771350632439,0.46814902,83.649,83.62,49.23521134]
[1771350632635,15.40814902,83.659,83.63,7.3792278]
[1771350632834,0.46814902,83.659,83.63,7.3792278]
[1771350633234,7.3792278,83.67,83.64,7.3792278]
[1771350633235,0.46814902,83.669,83.64,7.3792278]
[1771350633452,0.46814902,83.659,83.63,7.3792278]
[1771350633835,0.46814902,83.659,83.631,11.95728856]
[1771350634434,11.95203122,83.668,83.62,7.3792278]
[1771350634435,0.46814902,83.649,83.62,7.3792278]
[1771350634633,0.46814902,83.649,83.61,7.3792278]
[1771350634944,0.46814902,83.639,83.604,11.96115018]
[1771350635145,0.46814902,83.639,83.61,7.3792278]
[1771350635547,0.46814902,83.66,83.621,0.4562926]
[1771350635746,0.46814902,83.658,83.62,7.3792278]
[1771350637361,59.73823531,83.699,83.611,41.86052074]
[1771350637362,0.46814902,83.667,83.64,7.3792278]
[1771350637660,0.46814902,83.679,83.65,7.3792278]
[1771350637845,19.32961994,83.68,83.624,11.95828948]
[1771350637846,0.46814902,83.659,83.624,11.95828948]
[1771350638051,0.46814902,83.649,83.624,11.95828948]
[1771350640656,0.46814902,83.658,83.624,11.95828948]
[1771350641543,0.46814902,83.72,83.651,0.4562926]
[1771350641748,0.46814902,83.743,83.71,7.3792278]
[1771350641939,0.46814902,83.743,83.71,7.8355204]
[1771350642142,0.46814902,83.743,83.72,7.3792278]
[1771350642538,14.92,83.752,83.721,11.94443449]
[1771350642752,0.46814902,83.748,83.721,11.94443449]
[1771350644465,0.47379913,83.759,83.73,7.3792278]
[1771350645265,11.93927668,83.758,83.73,7.3792278]
[1771350645464,0.67379913,83.76,83.73,7.3792278]
[1771350645666,0.2,83.76,83.74,7.3792278]
[1771350646547,0.2,83.76,83.741,11.94158178]
[1771350647167,0.2,83.76,83.74,7.3792278]
[1771350647465,0.2,83.76,83.731,11.94300796]
[1771350647652,0.2,83.76,83.731,41.80052787]
[1771350648249,0.67379913,83.76,83.74,7.3792278]
[1771350648450,0.67379913,83.76,83.731,41.80052787]
[1771350649146,0.2,83.76,83.731,41.80052787]
[1771350649354,0.47379913,83.781,83.75,7.3792278]
[1771350650769,0.57379913,83.78,83.75,7.3792278]
[1771350651071,0.47379913,83.769,83.74,7.3792278]
[1771350651271,0.47379913,83.767,83.73,7.3792278]
[1771350651460,7.3792278,83.75,83.72,7.3792278]
[1771350651664,0.47379913,83.749,83.716,11.94514788]
[1771350652162,0.47379913,83.759,83.72,7.3792278]
[1771350652367,0.47379913,83.759,83.73,7.3792278]
[1771350653469,0.49068637,83.758,83.72,7.3792278]
[1771350653663,0.49068637,83.758,83.721,0.47195158]
[1771350654065,0.49068637,83.757,83.72,7.3792278]
[1771350654266,0.49068637,83.749,83.712,11.94571865]
[1771350654466,0.49068637,83.739,83.707,11.94634593]
[1771350655156,14.88,83.748,83.71,7.85117938]
[1771350655364,0.49068637,83.747,83.71,7.85117938]
[1771350655550,7.3792278,83.74,83.711,11.94586135]
[1771350655752,7.86991417,83.74,83.711,11.94586135]
[1771350656071,0.49068637,83.739,83.711,11.94586135]
[1771350656274,7.86991417,83.73,83.701,11.94728856]
[1771350656470,7.3792278,83.73,83.697,11.94783991]
[1771350656779,0.49068637,83.728,83.697,11.94783991]
[1771350656964,0.49068637,83.728,83.7,7.3792278]
[1771350657276,14.88,83.755,83.72,7.3792278]
[1771350657462,7.3792278,83.75,83.72,7.3792278]
[1771350657661,0.1,83.78,83.7,7.3792278]
[1771350657662,0.49068637,83.729,83.7,7.3792278]
[1771350657858,0.49068637,83.729,83.694,11.94828781]
[1771350658455,7.86991417,83.72,83.694,11.94828781]
[1771350658777,0.49068637,83.719,83.694,11.94828781]
[1771350659162,0.49068637,83.747,83.705,0.47195158]
[1771350659367,0.49068637,83.739,83.71,7.3792278]
[1771350659875,11.9420096,83.738,83.71,11.94596668]
[1771350660257,7.3792278,83.75,83.711,0.47195158]
[1771350660458,0.49068637,83.764,83.721,0.47195158]
[1771350660659,7.3792278,83.76,83.73,7.3792278]
[1771350660871,0.49068637,83.749,83.71,49.19020463]
[1771350661081,7.3792278,83.74,83.71,49.19020463]
[1771350661256,11.93843392,83.764,83.697,11.94785954]
[1771350661257,0.49068637,83.729,83.697,11.94785954]
[1771350661670,0.49068637,83.729,83.701,11.94728856]
[1771350661879,0.49068637,83.729,83.701,41.81550996]
[1771350662056,0.49068637,83.729,83.701,11.94728856]
[1771350663276,14.86,83.739,83.702,0.47195158]
[1771350663481,7.86991417,83.74,83.702,0.47195158]
[1771350663678,11.94186699,83.739,83.703,11.94700309]
[1771350663986,0.49068637,83.738,83.703,11.94700309]
[1771350664283,7.3792278,83.73,83.703,11.94700309]
[1771350664485,0.49068637,83.774,83.721,0.47195158]
[1771350664661,0.49068637,83.769,83.721,0.47195158]
[1771350664860,0.49068637,83.759,83.721,0.47195158]
[1771350665170,0.49068637,83.769,83.73,7.3792278]
[1771350665363,0.49068637,83.769,83.74,7.3792278]
[1771350665559,14.86,83.768,83.74,7.3792278]
[1771350665759,0.49068637,83.767,83.74,7.3792278]
[1771350666762,0.49068637,83.766,83.734,11.94256432]
[1771350666983,7.3792278,83.76,83.716,0.47195158]
[1771350667296,7.3792278,83.75,83.72,7.3792278]
[1771350667468,0.49068637,83.749,83.716,11.94514788]
[1771350667670,7.86991417,83.74,83.716,11.94514788]
[1771350667979,0.49068637,83.74,83.716,11.94514788]
[1771350668183,7.3792278,83.74,83.699,0.47195158]
[1771350668362,11.94050698,83.749,83.692,11.94857334]
[1771350668363,0.49068637,83.729,83.692,11.94857334]
[1771350668567,11.94050698,83.749,83.701,0.47195158]
[1771350668568,14.86,83.736,83.701,0.47195158]
[1771350669084,11.93992188,83.753,83.721,0.47195158]
[1771350669385,14.86,83.756,83.721,0.47195158]
[1771350669562,7.3792278,83.75,83.72,7.3792278]
[1771350669763,0.49068637,83.749,83.712,0.47195158]
[1771350670369,11.94058365,83.748,83.713,11.94557595]
[1771350670569,26.80058365,83.748,83.713,11.94557595]
[1771350670765,0.49068637,83.747,83.713,11.94557595]
[1771350671188,0.49068637,83.739,83.701,0.47195158]
[1771350671371,0.49068637,83.739,83.702,11.94714582]
[1771350671572,0.49068637,83.729,83.697,11.94778544]
[1771350671884,0.49068637,83.729,83.692,11.94844616]
[1771350672096,0.49068637,83.729,83.693,0.47195158]
[1771350672265,7.3792278,83.75,83.711,0.47195158]
[1771350672463,11.94072623,83.747,83.712,41.81001528]
[1771350672781,12.4314126,83.747,83.712,11.94571865]
[1771350673479,0.49068637,83.773,83.721,0.47195158]
[1771350673687,0.49068637,83.778,83.741,0.47195158]
[1771350673980,0.49068637,83.778,83.75,7.3792278]
[1771350674176,0.1,83.78,83.751,0.47195158]
[1771350674373,0.1,83.78,83.743,0.46633763]
[1771350674374,19.90606864,83.78,83.743,0.46633763]
[1771350674681,0.47893987,83.779,83.75,7.3792278]
[1771350674885,0.1,83.78,83.76,7.84556543]
[1771350675990,0.1,83.78,83.76,7.80618435]
[1771350676688,0.1,83.78,83.76,12.4051532]
[1771350676868,0.1,83.78,83.76,19.27866229]
[1771350677068,0.1,83.78,83.76,11.93881557]
[1771350677599,0.1,83.78,83.761,0.46633763]
[1771350677896,0.47893987,83.845,83.781,0.37414762]
[1771350678096,7.33984672,83.83,83.8,7.33984672]
[1771350678280,7.33984672,83.84,83.8,7.71399434]
[1771350678480,0.47893987,83.838,83.801,12.30714678]
[1771350679070,0.47893987,83.838,83.801,0.37414762]
[1771350679389,0.47893987,83.829,83.8,7.33984672]
[1771350679791,7.33984672,83.83,83.791,0.37414762]
[1771350679992,7.33984672,83.83,83.8,7.33984672]
[1771350680490,0.47893987,83.818,83.784,11.93539753]
[1771350682680,0.47893987,83.818,83.765,17.88]
[1771350682681,0.47893987,83.809,83.77,7.33984672]
[1771350682887,0.47893987,83.799,83.762,11.93851608]
[1771350683689,7.33984672,83.81,83.771,0.37414762]
[1771350683879,14.86,83.81,83.78,7.33984672]
[1771350684084,7.33984672,83.81,83.78,7.33984672]
[1771350684391,0.47893987,83.789,83.762,11.93851608]
[1771350685294,14.84,83.809,83.78,7.33984672]
[1771350685480,7.33984672,83.81,83.78,7.33984672]
[1771350685688,11.93087983,83.817,83.781,0.37414762]
[1771350685996,7.33984672,83.82,83.781,0.37414762]
[1771350685997,11.93046922,83.819,83.781,0.37414762]
[1771350686197,11.93046922,83.819,83.78,7.33984672]
[1771350686198,0.47893987,83.809,83.78,7.33984672]
[1771350686398,12.40940909,83.819,83.781,0.37414762]
[1771350686586,12.40940909,83.819,83.79,7.33984672]
[1771350686783,12.40940909,83.819,83.783,0.37414762]
[1771350686987,0.47893987,83.818,83.783,0.37414762]
[1771350687184,0.47893987,83.818,83.773,29.84241784]
[1771350687185,0.47893987,83.809,83.771,11.93723064]
[1771350688301,0.47893987,83.789,83.76,7.33984672]
[1771350688484,0.47893987,83.789,83.76,19.27862702]
[1771350689600,0.47893987,83.787,83.76,19.27862702]
[1771350689784,0.47893987,83.787,83.76,7.33984672]
[1771350691002,0.47893987,83.787,83.761,11.93873043]
[1771350692336,11.93516816,83.786,83.744,11.94115399]
[1771350692502,0.47893987,83.779,83.75,7.33984672]
[1771350693289,0.47893987,83.779,83.751,11.94015593]
[1771350693798,0.47893987,83.777,83.745,11.94096048]
[1771350693996,0.47893987,83.769,83.741,11.9415716]
[1771350694899,0.47893987,83.769,83.741,41.79552605]
[1771350695102,14.84,83.784,83.751,0.37414762]
[1771350695294,0.47893987,83.779,83.748,11.94053157]
[1771350695497,0.47893987,83.769,83.742,11.94133604]
[1771350696495,0.47893987,83.769,83.735,11.94233976]
[1771350696800,0.47893987,83.778,83.741,0.37414762]
[1771350698000,0.47893987,83.788,83.751,0.37414762]
[1771350698206,0.47893987,83.788,83.76,7.33984672]
[1771350699601,0.47893987,83.779,83.74,0.37414762]
[1771350699804,7.33984672,83.77,83.74,7.71399434]
[1771350699997,7.33984672,83.78,83.75,7.33984672]
[1771350700309,14.84,83.779,83.75,7.33984672]
[1771350700686,7.33984672,83.78,83.75,7.33984672]
[1771350701006,29.83364509,83.799,83.75,7.33984672]
[1771350701007,0.47893987,83.788,83.751,0.37414762]
[1771350702208,0.47893987,83.788,83.76,7.33984672]
[1771350702384,0.47893987,83.788,83.753,0.37414762]
[1771350702588,0.47893987,83.788,83.76,7.33984672]
[1771350703103,0.47893987,83.788,83.753,0.37414762]
[1771350703309,12.41393379,83.788,83.753,0.37414762]
[1771350703501,0.47893987,83.787,83.753,0.37414762]
[1771350703702,0.47893987,83.787,83.752,41.7900468]
[1771350703703,0.47893987,83.779,83.752,11.94001337]
[1771350704510,0.48931489,83.777,83.742,11.94143918]
[1771350704690,0.48931489,83.777,83.743,0.37414762]
[1771350705295,0.48931489,83.777,83.75,7.33984672]
[1771350705897,11.93630786,83.778,83.751,0.37414762]
[1771350707011,12.42548027,83.779,83.752,11.94001337]
[1771350707328,12.42548027,83.779,83.751,0.37414762]
[1771350707489,0.48931489,83.779,83.752,11.94001337]
[1771350708205,0.48931489,83.778,83.743,11.94129658]
[1771350708401,0.48931489,83.778,83.743,12.3154442]
[1771350708606,0.48931489,83.778,83.752,11.94001337]
[1771350708804,11.93645033,83.777,83.752,11.94001337]
[1771350709007,12.42576522,83.777,83.752,11.94001337]
[1771350709796,12.42576522,83.777,83.744,11.94115399]
[1771350710010,0.48931489,83.776,83.744,11.94115399]
[1771350710210,7.33984672,83.76,83.725,29.85939188]
[1771350710416,7.33984672,83.76,83.72,7.33984672]
[1771350710417,0.48931489,83.78,83.75,7.33984672]
[1771350710588,0.48931489,83.767,83.731,11.94300796]
[1771350710792,11.93773278,83.768,83.731,11.94300796]
[1771350710793,0.48931489,83.759,83.731,11.94300796]
[1771350710987,0.48931489,83.759,83.719,17.8]
[1771350710988,0.48931489,83.749,83.725,11.94375052]
[1771350711390,0.48931489,83.739,83.711,11.94586135]
[1771350712519,0.48931489,83.739,83.711,41.81051474]
[1771350712900,0.48931489,83.739,83.711,11.94586135]
[1771350713095,12.41108882,83.738,83.709,0.37414762]
[1771350713412,0.46907922,83.737,83.702,0.37414762]
[1771350713711,0.46907922,83.709,83.67,0.37414762]
[1771350713915,0.46907922,83.709,83.68,7.33984672]
[1771350714220,14.84,83.721,83.691,0.37414762]
[1771350714221,7.33984672,83.72,83.691,0.37414762]
[1771350714721,0.46907922,83.719,83.69,7.33984672]
[1771350715020,7.33984672,83.71,83.683,11.94985839]
[1771350715318,0.46907922,83.717,83.683,11.94985839]
[1771350716104,0.46907922,83.709,83.683,11.94985839]
[1771350716299,0.46907922,83.699,83.665,11.95236558]
[1771350716716,0.46907922,83.699,83.67,7.33984672]
[1771350716906,0.46907922,83.699,83.671,11.95157222]
[1771350718119,0.46907922,83.697,83.66,7.71399434]
[1771350718416,0.46907922,83.697,83.661,0.37414762]
[1771350719011,0.46907922,83.695,83.661,11.9530008]
[1771350719204,0.46907922,83.679,83.651,11.95442971]
[1771350719520,0.46907922,83.689,83.652,0.37414762]
[1771350719710,0.46907922,83.679,83.651,11.95442971]
[1771350720314,0.46907922,83.669,83.65,0.2]
[1771350720520,0.46907922,83.669,83.639,11.95602244]
[1771350720699,41.81800802,83.696,83.631,11.95728856]
[1771350720700,7.33984672,83.65,83.631,11.95728856]
[1771350720896,0.46907922,83.659,83.631,11.95728856]
[1771350721419,7.33984672,83.65,83.631,11.95728856]
[1771350721621,0.46907922,83.649,83.63,0.2]
[1771350722005,29.87952802,83.67,83.63,0.2]
[1771350722006,7.33984672,83.66,83.632,0.48683332]
[1771350722205,0.46907922,83.668,83.632,0.48683332]
[1771350722712,0.46907922,83.668,83.64,7.33984672]
[1771350723215,0.46907922,83.696,83.661,0.48683332]
[1771350723421,0.46907922,83.689,83.652,41.84000381]
[1771350723601,0.46907922,83.679,83.652,11.9542868]
[1771350724330,0.46907922,83.699,83.661,0.48683332]
[1771350724628,12.41665326,83.699,83.671,0.48683332]
[1771350724831,0.46907922,83.679,83.64,7.33984672]
[1771350725027,7.33984672,83.69,83.65,7.33984672]
[1771350725210,0.46907922,83.687,83.652,11.9542868]
[1771350725618,0.46907922,83.687,83.66,7.33984672]
[1771350725819,7.33984672,83.68,83.653,0.48683332]
[1771350726023,0.46907922,83.687,83.653,0.48683332]
[1771350727032,0.46907922,83.687,83.654,11.954001]
[1771350727341,0.46907922,83.686,83.66,7.33984672]
[1771350727511,0.46907922,83.686,83.654,0.48683332]
[1771350727708,0.46907922,83.679,83.633,17.82]
[1771350728031,0.46907922,83.669,83.64,7.33984672]
[1771350728233,0.46907922,83.669,83.635,29.8914933]
[1771350728610,14.84,83.682,83.641,0.48683332]
[1771350728611,0.46907922,83.679,83.641,0.48683332]
[1771350729017,0.46907922,83.679,83.642,11.95571602]
[1771350729225,0.46907922,83.679,83.643,0.48683332]
[1771350729618,11.95048785,83.679,83.643,0.48683332]
[1771350729857,0.46907922,83.678,83.643,0.48683332]
[1771350730035,0.46907922,83.669,83.632,30.37937021]
[1771350730342,0.46907922,83.669,83.64,7.33984672]
[1771350731116,0.46907922,83.669,83.641,11.95585896]
[1771350731534,0.46907922,83.678,83.642,0.48683332]
[1771350732035,7.80892594,83.67,83.642,0.48683332]
[1771350732253,0.46907922,83.669,83.641,11.95585896]
[1771350733514,0.46907922,83.669,83.63,7.53984672]
[1771350733736,0.46907922,83.659,83.631,11.9572833]
[1771350733931,0.46907922,83.677,83.641,0.48683332]
[1771350734126,0.46907922,83.687,83.651,0.48683332]
[1771350734924,0.46907922,83.687,83.66,7.33984672]
[1771350735334,0.46907922,83.687,83.651,0.48683332]
[1771350735735,0.46907922,83.687,83.66,7.82732631]
[1771350736133,0.48181656,83.698,83.661,0.48747959]
[1771350736442,0.48181656,83.709,83.68,7.33984672]
[1771350736739,0.48181656,83.709,83.671,0.48747959]
[1771350737349,0.48181656,83.709,83.67,7.33984672]
[1771350737536,0.48181656,83.699,83.67,7.33984672]
[1771350737940,0.48181656,83.699,83.67,19.307149]
[1771350738139,0.48181656,83.718,83.681,0.48747959]
[1771350738321,7.35543393,83.71,83.681,0.48747959]
[1771350738523,0.48181656,83.699,83.67,19.307149]
[1771350739223,0.48181656,83.699,83.67,19.79462859]
[1771350739625,0.48181656,83.709,83.681,0.48747959]
[1771350740129,0.48181656,83.709,83.67,41.83100274]
[1771350740322,0.48181656,83.709,83.619,47.83556107]
[1771350740323,0.48181656,83.699,83.661,11.9530008]
[1771350740634,0.48181656,83.689,83.653,11.9541439]
[1771350741324,7.35543393,83.69,83.661,0.48747959]
[1771350741549,47.7564676,83.759,83.671,11.95157222]
[1771350741550,0.48181656,83.699,83.671,11.95157222]
[1771350741922,0.48181656,83.699,83.672,0.48747959]
[1771350742128,0.48181656,83.699,83.671,11.95157222]
[1771350742353,11.94771679,83.698,83.671,11.95157222]
[1771350742537,0.48181656,83.699,83.666,11.95223299]
[1771350742832,0.48181656,83.689,83.653,12.44162349]
[1771350743038,0.48181656,83.689,83.661,0.48747959]
[1771350744027,14.82,83.71,83.67,7.35543393]
[1771350744028,7.35543393,83.71,83.67,7.35543393]